{"text_format":"1","workbook":"xlsx","n_sheets":3,"sheets":["Dashboard","Bodega de datos","Tablas dinámicas"],"not_rendered":{"charts":3,"images":31,"macros":1,"external_links":0,"defined_names":1,"comments":0,"pivot_tables":14},"unopened":[],"bounds":{"document_bytes":16777216,"sheet_cells":100000,"rows_first":2000,"rows_last":500,"rows_between":2000,"halvings":0,"cell_chars":16384,"cell_head_chars":4096},"cells_cut":0,"cells_raw":0,"read":"whole","date_system":"1900"}

{"sheet":"Dashboard","index":0,"n_rows":49,"n_cols":21,"rows_kept":49,"cut":false,"hidden":false,"merged":[[48,20,49,23]]}
[]
[]
[]
[]
[]
[]
[]
[]
[]
[]
[]
[]
[]
[]
[]
[]
[]
[]
[]
[]
[]
[]
[]
[]
[]
[]
[]
[]
[]
[]
[]
[]
[]
[]
[]
[]
[]
[]
[]
[]
[]
[]
[]
[]
[]
[]
[]
[]
[null,null,null,null,null,null,null,null,null,null,null,null,null,null,null,null,null,null,null,null,"Actualizar base de datos"]

{"sheet":"Bodega de datos","index":1,"n_rows":16,"n_cols":43,"rows_kept":16,"cut":false,"hidden":false,"merged":[[1,31,1,41],[1,1,1,8],[1,11,1,19],[1,21,1,30],[0,1,0,2]]}
[null,"Actualizar tabla "]
[null,"Canal de atención a la ciudadanía",null,null,null,null,null,null,null,null,null,"Entidad destinataria de la pqrsd que se está trasladando",null,null,null,null,null,null,null,null,null,"Tipología de las pqrs pendientes de trámite",null,null,null,null,null,null,null,null,null,"PQRSD pendientes de trámite por dependencia del DADEP"]
["Mes","Presencial","Telefónico","Redes sociales","Chat","Correo electrónico","Ventanilla de radicación","Buzón de sugerencias","Bogotá te escucha","Pqrs recibidas","Pqrs trasladadas","Secretaría de Movilidad","Secretaría de Desarrollo Económico","Secretaría de Gobierno","Secretaría de Ambiente","Secretaría de Habitat","Instituto para la Economía Social - IPES","Instituto Distrital de Recreación y Deporte -IDRD","Instituto Distrital de Participación y Acción Comunal - IDPAC","Otra entidad destinataria","Pqrs pendientes de trámite al final de cada mes","derecho de petición de interés particular","derecho de petición de interés general","reclamo","queja","solicitud de acceso a la información","consulta","felicitación","solicitud de copias","sugerencias","denuncia por actos de corrupción","Despacho","Registro Inmobiliario","Administración Inmobiliaria y Espacio Público","Subdirección Administriva y Financiera","Administrativa, Financiera y Control Disciplinario","Jurídica","Planeación","Sistemas","Atención al ciudadano","Control Interno","total","Columna1"]
["enero",157,84,11,19,861,72,0,415,415,274,20,0,156,18,1,23,8,0,48,220,141,62,0,2,3,8,0,4,0,0,0,60,150,0,5,2,0,0,3,0,{"$f":"+Tabla1[[#This Row],[Despacho]]+Tabla1[[#This Row],[Registro Inmobiliario]]+Tabla1[[#This Row],[Administración Inmobiliaria y Espacio Público]]+Tabla1[[#This Row],[Administrativa, Financiera y Control Disciplinario]]+Tabla1[[#This Row],[Jurídica]]+Tabla1[[#This Row],[Planeación]]+Tabla1[[#This Row],[Sistemas]]+Tabla1[[#This Row],[Control Interno]]+Tabla1[[#This Row],[Atención al ciudadano]]+Tabla1[[#This Row],[Subdirección Administriva y Financiera]]","v":220},{"$f":"+Tabla1[[#This Row],[Pqrs pendientes de trámite al final de cada mes]]","v":220}]
["febrero",319,145,10,96,1121,122,0,599,599,443,41,0,222,23,1,53,21,0,82,231,147,64,0,3,3,8,0,5,0,1,0,62,155,5,1,2,0,0,6,0,{"$f":"+Tabla1[[#This Row],[Despacho]]+Tabla1[[#This Row],[Registro Inmobiliario]]+Tabla1[[#This Row],[Administración Inmobiliaria y Espacio Público]]+Tabla1[[#This Row],[Administrativa, Financiera y Control Disciplinario]]+Tabla1[[#This Row],[Jurídica]]+Tabla1[[#This Row],[Planeación]]+Tabla1[[#This Row],[Sistemas]]+Tabla1[[#This Row],[Control Interno]]+Tabla1[[#This Row],[Atención al ciudadano]]+Tabla1[[#This Row],[Subdirección Administriva y Financiera]]","v":231},{"$f":"+Tabla1[[#This Row],[Pqrs pendientes de trámite al final de cada mes]]","v":231}]
["marzo",null,null,null,null,null,null,null,null,null,null,null,null,null,null,null,null,null,null,null,null,null,null,null,null,null,null,null,null,null,null,null,null,null,null,null,null,null,null,null,null,{"$f":"+Tabla1[[#This Row],[Despacho]]+Tabla1[[#This Row],[Registro Inmobiliario]]+Tabla1[[#This Row],[Administración Inmobiliaria y Espacio Público]]+Tabla1[[#This Row],[Administrativa, Financiera y Control Disciplinario]]+Tabla1[[#This Row],[Jurídica]]+Tabla1[[#This Row],[Planeación]]+Tabla1[[#This Row],[Sistemas]]+Tabla1[[#This Row],[Control Interno]]+Tabla1[[#This Row],[Atención al ciudadano]]+Tabla1[[#This Row],[Subdirección Administriva y Financiera]]","v":0},{"$f":"+Tabla1[[#This Row],[Pqrs pendientes de trámite al final de cada mes]]","v":0}]
["abril",null,null,null,null,null,null,null,null,null,null,null,null,null,null,null,null,null,null,null,null,null,null,null,null,null,null,null,null,null,null,null,null,null,null,null,null,null,null,null,null,{"$f":"+Tabla1[[#This Row],[Despacho]]+Tabla1[[#This Row],[Registro Inmobiliario]]+Tabla1[[#This Row],[Administración Inmobiliaria y Espacio Público]]+Tabla1[[#This Row],[Administrativa, Financiera y Control Disciplinario]]+Tabla1[[#This Row],[Jurídica]]+Tabla1[[#This Row],[Planeación]]+Tabla1[[#This Row],[Sistemas]]+Tabla1[[#This Row],[Control Interno]]+Tabla1[[#This Row],[Atención al ciudadano]]+Tabla1[[#This Row],[Subdirección Administriva y Financiera]]","v":0},{"$f":"+Tabla1[[#This Row],[Pqrs pendientes de trámite al final de cada mes]]","v":0}]
["mayo",null,null,null,null,null,null,null,null,null,null,null,null,null,null,null,null,null,null,null,null,null,null,null,null,null,null,null,null,null,null,null,null,null,null,null,null,null,null,null,null,{"$f":"+Tabla1[[#This Row],[Despacho]]+Tabla1[[#This Row],[Registro Inmobiliario]]+Tabla1[[#This Row],[Administración Inmobiliaria y Espacio Público]]+Tabla1[[#This Row],[Administrativa, Financiera y Control Disciplinario]]+Tabla1[[#This Row],[Jurídica]]+Tabla1[[#This Row],[Planeación]]+Tabla1[[#This Row],[Sistemas]]+Tabla1[[#This Row],[Control Interno]]+Tabla1[[#This Row],[Atención al ciudadano]]+Tabla1[[#This Row],[Subdirección Administriva y Financiera]]","v":0},{"$f":"+Tabla1[[#This Row],[Pqrs pendientes de trámite al final de cada mes]]","v":0}]
["junio",null,null,null,null,null,null,null,null,null,null,null,null,null,null,null,null,null,null,null,null,null,null,null,null,null,null,null,null,null,null,null,null,null,null,null,null,null,null,null,null,{"$f":"+Tabla1[[#This Row],[Despacho]]+Tabla1[[#This Row],[Registro Inmobiliario]]+Tabla1[[#This Row],[Administración Inmobiliaria y Espacio Público]]+Tabla1[[#This Row],[Administrativa, Financiera y Control Disciplinario]]+Tabla1[[#This Row],[Jurídica]]+Tabla1[[#This Row],[Planeación]]+Tabla1[[#This Row],[Sistemas]]+Tabla1[[#This Row],[Control Interno]]+Tabla1[[#This Row],[Atención al ciudadano]]+Tabla1[[#This Row],[Subdirección Administriva y Financiera]]","v":0},{"$f":"+Tabla1[[#This Row],[Pqrs pendientes de trámite al final de cada mes]]","v":0}]
["julio",null,null,null,null,null,null,null,null,null,null,null,null,null,null,null,null,null,null,null,null,null,null,null,null,null,null,null,null,null,null,null,null,null,null,null,null,null,null,null,null,{"$f":"+Tabla1[[#This Row],[Despacho]]+Tabla1[[#This Row],[Registro Inmobiliario]]+Tabla1[[#This Row],[Administración Inmobiliaria y Espacio Público]]+Tabla1[[#This Row],[Administrativa, Financiera y Control Disciplinario]]+Tabla1[[#This Row],[Jurídica]]+Tabla1[[#This Row],[Planeación]]+Tabla1[[#This Row],[Sistemas]]+Tabla1[[#This Row],[Control Interno]]+Tabla1[[#This Row],[Atención al ciudadano]]+Tabla1[[#This Row],[Subdirección Administriva y Financiera]]","v":0},{"$f":"+Tabla1[[#This Row],[Pqrs pendientes de trámite al final de cada mes]]","v":0}]
["agosto",null,null,null,null,null,null,null,null,null,null,null,null,null,null,null,null,null,null,null,null,null,null,null,null,null,null,null,null,null,null,null,null,null,null,null,null,null,null,null,null,{"$f":"+Tabla1[[#This Row],[Despacho]]+Tabla1[[#This Row],[Registro Inmobiliario]]+Tabla1[[#This Row],[Administración Inmobiliaria y Espacio Público]]+Tabla1[[#This Row],[Administrativa, Financiera y Control Disciplinario]]+Tabla1[[#This Row],[Jurídica]]+Tabla1[[#This Row],[Planeación]]+Tabla1[[#This Row],[Sistemas]]+Tabla1[[#This Row],[Control Interno]]+Tabla1[[#This Row],[Atención al ciudadano]]+Tabla1[[#This Row],[Subdirección Administriva y Financiera]]","v":0},{"$f":"+Tabla1[[#This Row],[Pqrs pendientes de trámite al final de cada mes]]","v":0}]
["septiembre",null,null,null,null,null,null,null,null,null,null,null,null,null,null,null,null,null,null,null,null,null,null,null,null,null,null,null,null,null,null,null,null,null,null,null,null,null,null,null,null,{"$f":"+Tabla1[[#This Row],[Despacho]]+Tabla1[[#This Row],[Registro Inmobiliario]]+Tabla1[[#This Row],[Administración Inmobiliaria y Espacio Público]]+Tabla1[[#This Row],[Administrativa, Financiera y Control Disciplinario]]+Tabla1[[#This Row],[Jurídica]]+Tabla1[[#This Row],[Planeación]]+Tabla1[[#This Row],[Sistemas]]+Tabla1[[#This Row],[Control Interno]]+Tabla1[[#This Row],[Atención al ciudadano]]+Tabla1[[#This Row],[Subdirección Administriva y Financiera]]","v":0},{"$f":"+Tabla1[[#This Row],[Pqrs pendientes de trámite al final de cada mes]]","v":0}]
["octubre",null,null,null,null,null,null,null,null,null,null,null,null,null,null,null,null,null,null,null,null,null,null,null,null,null,null,null,null,null,null,null,null,null,null,null,null,null,null,null,null,{"$f":"+Tabla1[[#This Row],[Despacho]]+Tabla1[[#This Row],[Registro Inmobiliario]]+Tabla1[[#This Row],[Administración Inmobiliaria y Espacio Público]]+Tabla1[[#This Row],[Administrativa, Financiera y Control Disciplinario]]+Tabla1[[#This Row],[Jurídica]]+Tabla1[[#This Row],[Planeación]]+Tabla1[[#This Row],[Sistemas]]+Tabla1[[#This Row],[Control Interno]]+Tabla1[[#This Row],[Atención al ciudadano]]+Tabla1[[#This Row],[Subdirección Administriva y Financiera]]","v":0},{"$f":"+Tabla1[[#This Row],[Pqrs pendientes de trámite al final de cada mes]]","v":0}]
["noviembre",null,null,null,null,null,null,null,null,null,null,null,null,null,null,null,null,null,null,null,null,null,null,null,null,null,null,null,null,null,null,null,null,null,null,null,null,null,null,null,null,{"$f":"+Tabla1[[#This Row],[Despacho]]+Tabla1[[#This Row],[Registro Inmobiliario]]+Tabla1[[#This Row],[Administración Inmobiliaria y Espacio Público]]+Tabla1[[#This Row],[Administrativa, Financiera y Control Disciplinario]]+Tabla1[[#This Row],[Jurídica]]+Tabla1[[#This Row],[Planeación]]+Tabla1[[#This Row],[Sistemas]]+Tabla1[[#This Row],[Control Interno]]+Tabla1[[#This Row],[Atención al ciudadano]]+Tabla1[[#This Row],[Subdirección Administriva y Financiera]]","v":0},{"$f":"+Tabla1[[#This Row],[Pqrs pendientes de trámite al final de cada mes]]","v":0}]
["diciembre",null,null,null,null,null,null,null,null,null,null,null,null,null,null,null,null,null,null,null,null,null,null,null,null,null,null,null,null,null,null,null,null,null,null,null,null,null,null,null,null,{"$f":"+Tabla1[[#This Row],[Despacho]]+Tabla1[[#This Row],[Registro Inmobiliario]]+Tabla1[[#This Row],[Administración Inmobiliaria y Espacio Público]]+Tabla1[[#This Row],[Administrativa, Financiera y Control Disciplinario]]+Tabla1[[#This Row],[Jurídica]]+Tabla1[[#This Row],[Planeación]]+Tabla1[[#This Row],[Sistemas]]+Tabla1[[#This Row],[Control Interno]]+Tabla1[[#This Row],[Atención al ciudadano]]+Tabla1[[#This Row],[Subdirección Administriva y Financiera]]","v":0},{"$f":"+Tabla1[[#This Row],[Pqrs pendientes de trámite al final de cada mes]]","v":0}]
["Acumulado año",{"$f":"+B4+B5+B6+B7+B8+B9+B10+B11+B12+B13+B14+B15","v":476},{"$f":"+C4+C5+C6+C7+C8+C9+C10+C11+C12+C13+C14+C15","v":229},21,115,1982,194,0,{"$f":"+I4+I5+I6+I7+I8+I9+I10+I11+I12+I13+I14+I15","v":1014},{"$f":"+J15+J14+J13+J12+J11+J10+J9+J7+J8+J6+J5+J4","v":1014},{"$f":"+K15+K14+K13+K12+K11+K10+K9+K8+K7+K6+K5+K4","v":717},61,0,378,41,2,76,29,0,130,451,288,126,0,5,6,16,0,9,0,1,0,122,305,null,6,4,0,0,9,0,{"$f":"+Tabla1[[#This Row],[Despacho]]+Tabla1[[#This Row],[Registro Inmobiliario]]+Tabla1[[#This Row],[Administración Inmobiliaria y Espacio Público]]+Tabla1[[#This Row],[Administrativa, Financiera y Control Disciplinario]]+Tabla1[[#This Row],[Jurídica]]+Tabla1[[#This Row],[Planeación]]+Tabla1[[#This Row],[Sistemas]]+Tabla1[[#This Row],[Control Interno]]+Tabla1[[#This Row],[Atención al ciudadano]]+Tabla1[[#This Row],[Subdirección Administriva y Financiera]]","v":446},{"$f":"+Tabla1[[#This Row],[Pqrs pendientes de trámite al final de cada mes]]","v":451}]

{"sheet":"Tablas dinámicas","index":2,"n_rows":109,"n_cols":11,"rows_kept":109,"cut":false,"hidden":false,"merged":[[0,6,2,9],[0,1,1,4],[2,1,2,4]]}
[null,"Regresar "]
[]
[null,"al Dashboard"]
["Cantidad de atenciones brindadas a la ciudadanía por canal"]
[]
["Etiquetas de fila","Suma de Presencial",null,"Etiquetas de fila","Suma de Telefónico",null,"Etiquetas de fila","Suma de Redes sociales",null,"Etiquetas de fila","Suma de Chat"]
["febrero",319,null,"febrero",145,null,"febrero",10,null,"febrero",96]
["Total general",319,null,"Total general",145,null,"Total general",10,null,"Total general",96]
[]
[]
[]
[]
[]
[]
[]
[]
[]
[]
[]
[]
[null,{"$f":"+GETPIVOTDATA(\"Presencial\",$A$6)","v":319}]
[]
["Etiquetas de fila","Suma de Correo electrónico",null,"Etiquetas de fila","Suma de Ventanilla de radicación",null,"Etiquetas de fila","Suma de Buzón de sugerencias",null,"Etiquetas de fila","Suma de Bogotá te escucha"]
["febrero",1121,null,"febrero",122,null,"febrero",0,null,"febrero",599]
["Total general",1121,null,"Total general",122,null,"Total general",0,null,"Total general",599]
[]
[]
[]
[]
[]
[]
[]
[]
[]
[]
[]
[]
[]
[]
["Cantidad de PQRS recibidas y trasladadas"]
[]
["Etiquetas de fila","Suma de Pqrs recibidas",null,"Etiquetas de fila","Suma de Pqrs trasladadas",null,null,"Etiquetas de columna"]
["febrero",599,null,"febrero",443,null,"Valores","febrero","Total general"]
["Total general",599,null,"Total general",443,null,"Secretaría de Movilidad.",41,41]
[null,null,null,null,null,null,"Secretaría de Desarrollo Económico.",0,0]
[null,null,null,null,null,null,"Secretaría de Gobierno.",222,222]
[null,null,null,null,null,null,"Secretaría de Ambiente.",23,23]
[null,null,null,null,null,null,"Recreación y Deporte -IDRD.",21,21]
[null,null,null,null,null,null,"Participación y Acción Comunal - IDPAC.",0,0]
[null,null,null,null,null,null,"Instituto para la Economía Social - IPES.",53,53]
[null,null,null,null,null,null,"Otra entidad destinataria.",82,82]
[]
[]
[]
[]
[]
[]
[]
["Cantidad de PQRSD por tipología pendientes de trámite"]
[]
[null,"Etiquetas de columna"]
["Valores","febrero","Total general"]
["Derecho de petición de interés particular.",147,147]
["Derecho de petición de interés general.",64,64]
["Reclamo.",0,0]
["Queja.",3,3]
["Solicitud de acceso a la información.",3,3]
["Consulta.",8,8]
["Felicitación.",0,0]
["Solicitud de copias.",5,5]
["Sugerencias.",0,0]
["Denuncia por actos de corrupción.",1,1]
[]
[]
["PQRSD pendientes de trámite al final del mes"]
[]
["Etiquetas de fila","Pqrs pendientes de trámite al final de cada mes."]
["febrero",231]
["Total general",231]
[]
[]
[]
[]
[]
[]
[]
[]
[]
[]
[]
[]
[]
[]
[]
[]
[]
[]
[null,"Etiquetas de columna"]
["Valores","febrero","Total general"]
["Despacho.",0,0]
["Registro Inmobiliario.",62,62]
["Administración Inmobiliaria y Espacio Público.",155,155]
["Administrativa, Financiera y Control Disciplinario.",1,1]
["Jurídica.",2,2]
["Planeación.",0,0]
["Sistemas.",0,0]
["Control Interno.",0,0]
[" Atención al ciudadano",6,6]
["Suma de total",231,231]